fUSD/lending_fUSD_20251027
["ID","MTS","AMOUNT","RATE_DAILY","PERIOD"]
[392525157,1761606741929,250.0,0.00037135,50]
[392525158,1761606742055,151.0,0.00037135,50]
[392525159,1761606742289,250.0,0.00037135,50]
[392525160,1761606742486,250.0,0.00037135,50]
[392525161,1761606742569,250.0,0.00037135,50]
[392525162,1761606742693,151.0,0.00037135,50]
[392525163,1761606742904,250.0,0.00037135,50]
[392525164,1761606743111,250.0,0.00037135,50]
[392525165,1761606743237,250.0,0.00037135,50]
[392525166,1761606743322,151.0,0.00037135,50]
[392525167,1761606743527,250.0,0.00037135,50]
[392525168,1761606743769,250.0,0.00037135,50]
[392525169,1761606743873,250.0,0.00037135,50]
[392525170,1761606744180,250.0,0.00037135,50]
[392525171,1761606744263,151.0,0.00037135,50]
[392525172,1761606744463,250.0,0.00037135,50]
[392525173,1761606744546,250.0,0.00037135,50]
[392525174,1761606744646,151.0,0.00037135,50]
[392525175,1761606744782,250.0,0.00037135,50]
[392525176,1761606745014,250.0,0.00037135,50]
[392525177,1761606745106,250.0,0.00037135,50]
[392525178,1761606745274,151.0,0.00037135,50]
[392525179,1761606745508,250.0,0.00037135,50]
[392525180,1761606745643,250.0,0.00037135,50]
[392525181,1761606745722,250.0,0.00037135,50]
[392525182,1761606745909,151.0,0.00037135,50]
[392525183,1761606745994,250.0,0.00037135,50]
[392525184,1761606746265,250.0,0.00037135,50]
[392525185,1761606746344,250.0,0.00037135,50]
[392525186,1761606746566,151.0,0.00037135,50]
[392525187,1761606746643,250.0,0.00037135,50]
[392525188,1761606746895,250.0,0.00037135,50]
[392525189,1761606747029,250.0,0.00037135,50]
[392525190,1761606747164,151.0,0.00037135,50]
[392525191,1761606747264,250.0,0.00037135,50]
[392525192,1761606747500,250.0,0.00037135,50]
[392525193,1761606747580,414.0,0.00037135,50]
[392525194,1761606747740,250.0,0.00037135,50]
[392525195,1761606747831,151.0,0.00037135,50]
[392525196,1761606748097,250.0,0.00037135,50]
[392525197,1761606748182,429.318,0.00037135,50]
[392525198,1761606748377,151.0,0.00037135,50]
[392525199,1761606748727,250.0,0.00037135,50]
[392525200,1761606748805,445.202766,0.00037135,50]
[392525201,1761606748980,151.0,0.00037135,50]
[392525202,1761606749377,250.0,0.00037135,50]
[392525203,1761606749453,461.67526834,0.00037135,50]
[392525204,1761606749606,151.0,0.00037135,50]
[392525205,1761606750022,250.0,0.00037135,50]
[392525206,1761606750113,478.75725327,0.00037135,50]
[392525207,1761606750702,496.47127164,0.00037135,50]
[392525208,1761606750782,250.0,0.00037135,50]
[392525209,1761606751070,151.0,0.00037135,50]
[392525210,1761606751354,514.84070869,0.00037135,50]
[392525211,1761606751466,250.0,0.00037135,50]
[392525212,1761606751688,151.0,0.00037135,50]
[392525213,1761606752018,533.88981491,0.00037135,50]
[392525214,1761606752146,250.0,0.00037135,50]
[392525215,1761606752380,151.0,0.00037135,50]
[392525217,1761606752650,553.64373807,0.00037135,50]
[392525218,1761606752767,250.0,0.00037135,50]
[392525220,1761606753015,151.0,0.00037135,50]
[392525222,1761606753373,574.12855637,0.00037135,50]
[392525223,1761606753463,250.0,0.00037135,50]
[392525224,1761606753666,151.0,0.00037135,50]
[392525226,1761606753978,595.37131296,0.00037135,50]
[392525227,1761606754083,250.0,0.00037135,50]
[392525228,1761606754419,151.0,0.00037135,50]
[392525232,1761606755307,151.0,0.00037135,50]
[392525233,1761606755949,151.0,0.00037135,50]
[392525234,1761606756695,151.0,0.00037135,50]
[392525235,1761606757333,151.0,0.00037135,50]
[392525236,1761606757497,500.0,0.00037135,50]
[392525237,1761606757987,151.0,0.00037135,50]
[392525238,1761606758115,500.0,0.00037135,50]
[392525239,1761606758616,151.0,0.00037135,50]
[392525240,1761606758764,500.0,0.00037135,50]
[392525241,1761606759202,151.0,0.00037135,50]
[392525242,1761606759410,500.0,0.00037135,50]
[392525243,1761606759861,151.0,0.00037135,50]
[392525244,1761606759942,250.0,0.00037135,50]
[392525245,1761606760023,500.0,0.00037135,50]
[392525246,1761606760515,250.0,0.00037135,50]
[392525247,1761606760661,500.0,0.00037135,50]
[392525248,1761606761118,250.0,0.00037135,50]
[392525249,1761606761337,500.0,0.00037135,50]
[392525250,1761606761746,250.0,0.00037135,50]
[392525251,1761606762031,500.0,0.00037135,50]
[392525252,1761606762390,250.0,0.00037135,50]
[392525253,1761606762647,500.0,0.00037135,50]
[392525254,1761606763018,250.0,0.00037135,50]
[392525255,1761606763240,500.0,0.00037135,50]
[392525256,1761606763871,500.0,0.00037135,50]
[392525257,1761606764143,250.0,0.00037135,50]
[392525258,1761606764493,500.0,0.00037135,50]
[392525259,1761606764824,250.0,0.00037135,50]
[392525260,1761606765123,500.0,0.00037135,50]
[392525261,1761606765462,250.0,0.00037135,50]
[392525262,1761606766041,500.0,0.00037135,50]
[392525263,1761606766525,500.0,0.00037135,50]
[392525264,1761606768146,151.0,0.00037135,50]
[392525265,1761606768838,151.0,0.00037135,50]
[392525266,1761606769452,151.0,0.00037135,50]
[392525267,1761606770065,151.0,0.00037135,50]
[392525268,1761606770676,151.0,0.00037135,50]
[392525269,1761606771355,151.0,0.00037135,50]
[392525270,1761606771549,1694.2,0.00031507,120]
[392525271,1761606771959,151.0,0.00037135,50]
[392525272,1761606772580,151.0,0.00037135,50]
[392525273,1761606773449,151.0,0.00037135,50]
[392525274,1761606809876,162.35,0.00031506,120]
[392525275,1761606843690,4128.28514528,0.00027425,120]
[392525276,1761606844354,195.0,0.00027425,120]
[392525277,1761606844467,195.0,0.00026206,120]
[392525278,1761606846881,300.0,0.00027425,120]
[392525279,1761606847001,172.99020297,0.00026206,120]
[392525280,1761607017531,-207.47725272,0.00031614,120]
[392525281,1761607017573,-205.36915972,0.00033203,30]
[392525282,1761607017613,-153.61,0.00034395,60]
[392525283,1761607017650,-153.61,0.00034495,60]
[392525284,1761607017683,-153.61,0.00034595,60]
[392525285,1761607017718,-153.61,0.00034695,60]
[392525286,1761607017753,-447.62,0.000347,60]
[392525287,1761607017786,-153.61,0.00034795,60]
[392525288,1761607017821,-153.61,0.00034895,60]
[392525289,1761607017858,-153.61,0.00034995,60]
[392525290,1761607017896,-153.61,0.00035095,60]
[392525291,1761607017934,-153.61,0.00035195,60]
[392525292,1761607017964,-153.61,0.00035295,60]
[392525293,1761607017999,-153.61,0.00035395,60]
[392525294,1761607018033,-153.61,0.00035495,60]
[392525295,1761607018067,-153.61,0.00035595,60]
[392525296,1761607018109,-153.61,0.00035695,60]
[392525297,1761607018144,-153.61,0.00035795,60]
[392525298,1761607018185,-153.61,0.00035895,60]
[392525299,1761607018216,-153.61,0.00035995,60]
[392525300,1761607018248,-180.161,0.00036041,44]
[392525301,1761607018284,-153.61,0.00036095,60]
[392525302,1761607018324,-153.61,0.00036195,60]
[392525303,1761607018356,-153.61,0.00036295,60]
[392525304,1761607018389,-153.61,0.00036395,60]
[392525305,1761607018427,-153.61,0.00036495,60]
[392525306,1761607018462,-153.61,0.00036595,60]
[392525307,1761607018496,-153.61,0.00036695,60]
[392525308,1761607018532,-153.61,0.00036795,60]
[392525309,1761607018564,-153.61,0.00036895,60]
[392525310,1761607018594,-500.0,0.00036935,30]
[392525311,1761607018629,-500.0,0.00036986,120]
[392525312,1761607018664,-999.0,0.00036986,120]
[392525313,1761607018696,-153.61,0.00036995,60]
[392525314,1761607018729,-153.61,0.00037095,60]
[392525315,1761607018760,-1303.78191918,0.00037122,30]
[392525316,1761607018789,-1008.56,0.0003713,50]
[392525317,1761607018822,-1398.65260637,0.00037134,120]
[392525318,1761607018851,-156.07599657,0.00037135,30]
[392525319,1761607018882,-153.61,0.00037195,60]
[392525320,1761607018915,-230.44,0.000372,30]
[392525321,1761607018943,-172.3936493,0.00037203,30]
[392525322,1761607018975,-500.0,0.00037209,30]
[392525323,1761607019011,-153.61,0.00037295,60]
[392525324,1761607019043,-153.61,0.00037395,60]
[392525325,1761607019074,-500.0,0.00037456,120]
[392525326,1761607019104,-500.0,0.00037483,30]
[392525327,1761607019134,-153.61,0.00037495,60]
[392525328,1761607019172,-153.61,0.00037595,60]
[392525329,1761607019203,-153.61,0.00037695,60]
[392525330,1761607019233,-500.0,0.00037757,30]
[392525331,1761607019264,-153.61,0.00037795,60]
[392525332,1761607019296,-500.0,0.00037808,120]
[392525333,1761607019330,-153.61,0.00037895,60]
[392525334,1761607019362,-153.71240137,0.00037995,60]
[392525335,1761607019393,-500.0,0.00038031,30]
[392525336,1761607019427,-2378.19663865,0.000381,33]
[392525337,1761607019458,-500.0,0.00038305,30]
[392525338,1761607019493,-1620.74,0.000384,30]
[392525339,1761607019523,-230.44,0.000385,30]
[392525340,1761607019553,-500.0,0.00038579,30]
[392525341,1761607019585,-500.0,0.0003863,120]
[392525342,1761607019615,-500.0,0.00038666,120]
[392525343,1761607019644,-857.243442,0.00038666,120]
[392525344,1761607019673,-519.043334,0.00038666,120]
[392525345,1761607019707,-500.0,0.00038666,120]
[392525346,1761607019737,-500.0,0.00038853,30]
[392525347,1761607019772,-500.0,0.00039127,30]
[392525348,1761607019806,-1398.65260637,0.00039363,120]
[392525349,1761607019839,-500.0,0.00039401,30]
[392525350,1761607019874,-500.0,0.00039452,120]
[392525351,1761607019908,-500.0,0.00039675,30]
[392525352,1761607019944,-1620.74,0.000397,30]
[392525353,1761607019978,-500.0,0.00039949,30]
[392525354,1761607020009,-362.92059565,0.00039999,31]
[392525355,1761607020038,-428.8340642,0.00039999,31]
[392525356,1761607020069,-421.58959212,0.00039999,31]
[392525357,1761607020101,-404.75973358,0.00039999,31]
[392525358,1761607020132,-500.0,0.00039999,31]
[392525359,1761607020163,-469.48869295,0.00039999,31]
[392525360,1761607020200,-502.27684546,0.00039999,31]
[392525361,1761607020230,-1800.0,0.0004,30]
[392525362,1761607020262,-500.0,0.0004,30]
[392525363,1761607020296,-800.0,0.0004,30]
[392525364,1761607020329,-1800.0,0.0004,30]
[392525365,1761607020359,-800.0,0.0004,30]
[392525366,1761607020674,-1800.0,0.0004,30]
[392525367,1761607020704,-800.0,0.0004,30]
[392525368,1761607020734,-1800.0,0.0004,30]
[392525369,1761607020762,-800.0,0.0004,30]
[392525370,1761607020791,-1800.0,0.0004,30]
[392525371,1761607020820,-800.0,0.0004,30]
[392525372,1761607020848,-900.0,0.0004,30]
[392525373,1761607020889,-1800.0,0.0004,30]
[392525374,1761607020920,-800.0,0.0004,30]
[392525375,1761607020950,-900.0,0.0004,30]
[392525376,1761607020978,-1800.0,0.0004,30]
[392525377,1761607021007,-800.0,0.0004,30]
[392525378,1761607021034,-900.0,0.0004,30]
[392525379,1761607021062,-1800.0,0.0004,30]
[392525380,1761607021091,-800.0,0.0004,30]
[392525381,1761607021118,-900.0,0.0004,30]
[392525382,1761607021146,-1800.0,0.0004,30]
[392525383,1761607021174,-800.0,0.0004,30]
[392525384,1761607021203,-1800.0,0.0004,30]
[392525385,1761607021230,-900.0,0.0004,30]
[392525386,1761607021261,-800.0,0.0004,30]
[392525387,1761607021290,-500.0,0.0004,30]
[392525388,1761607021321,-900.0,0.0004,30]
[392525389,1761607021354,-1800.0,0.0004,30]
[392525390,1761607021385,-800.0,0.0004,30]
[392525391,1761607021418,-900.0,0.0004,30]
[392525392,1761607021448,-500.0,0.0004,30]
[392525393,1761607021478,-1800.0,0.0004,30]
[392525394,1761607021511,-800.0,0.0004,30]
[392525395,1761607021540,-900.0,0.0004,30]
[392525396,1761607021569,-500.0,0.0004,30]
[392525397,1761607021600,-1800.0,0.0004,30]
[392525398,1761607021629,-315.39185696,0.0004,30]
[392525399,1761607021658,-800.0,0.0004,30]
[392525400,1761607021687,-900.0,0.0004,30]
[392525401,1761607021724,-500.0,0.0004,30]
[392525402,1761607021756,-1800.0,0.0004,30]
[392525403,1761607021785,-500.0,0.0004,30]
[392525404,1761607021815,-800.0,0.0004,30]
[392525405,1761607021845,-900.0,0.0004,30]
[392525406,1761607021874,-500.0,0.0004,30]
[392525407,1761607021907,-810.0,0.0004,30]
[392525408,1761607021938,-500.0,0.0004,30]
[392525409,1761607021968,-1800.0,0.0004,30]
[392525410,1761607021998,-588.10230962,0.0004,30]
[392525411,1761607022028,-800.0,0.0004,30]
[392525412,1761607022058,-500.0,0.0004,30]
[392525413,1761607022087,-500.0,0.0004,30]
[392525414,1761607022119,-1800.0,0.0004,30]
[392525415,1761607022149,-900.0,0.0004,30]
[392525416,1761607022180,-800.0,0.0004,30]
[392525417,1761607022210,-558.13551783,0.0004,30]
[392525418,1761607022240,-1800.0,0.0004,30]
[392525419,1761607022271,-900.0,0.0004,30]
[392525420,1761607022300,-800.0,0.0004,30]
[392525421,1761607022328,-1800.0,0.0004,30]
[392525422,1761607022355,-900.0,0.0004,30]
[392525423,1761607022391,-800.0,0.0004,30]
[392525424,1761607022419,-1800.0,0.0004,30]
[392525425,1761607022448,-900.0,0.0004,30]
[392525426,1761607022478,-800.0,0.0004,30]
[392525427,1761607022508,-1800.0,0.0004,30]
[392525428,1761607022535,-800.0,0.0004,30]
[392525429,1761607022562,-900.0,0.0004,30]
[392525430,1761607022589,-1800.0,0.0004,30]
[392525431,1761607022618,-800.0,0.0004,30]
[392525432,1761607022646,-900.0,0.0004,30]
[392525433,1761607022675,-1800.0,0.0004,30]
[392525434,1761607022702,-800.0,0.0004,30]
[392525435,1761607022730,-900.0,0.0004,30]
[392525436,1761607022760,-1800.0,0.0004,30]
[392525437,1761607022789,-800.0,0.0004,30]
[392525438,1761607022816,-900.0,0.0004,30]
[392525439,1761607022843,-500.7,0.0004,30]
[392525440,1761607022870,-168.45246627,0.0004,30]
[392525441,1761607022900,-165.05424317,0.0004,30]
[392525442,1761607022936,-500.0,0.0004,30]
[392525443,1761607022966,-1800.0,0.0004,30]
[392525444,1761607023002,-800.0,0.0004,30]
[392525445,1761607023032,-900.0,0.0004,30]
[392525446,1761607023061,-500.0,0.0004,30]
[392525447,1761607023092,-1800.0,0.0004,30]
[392525448,1761607023122,-800.0,0.0004,30]
[392525449,1761607023150,-500.0,0.0004,30]
[392525450,1761607023179,-900.0,0.0004,30]
[392525451,1761607023214,-1800.0,0.0004,30]
[392525452,1761607023391,-800.0,0.0004,30]
[392525453,1761607023421,-600.0,0.0004,30]
[392525454,1761607023451,-500.0,0.0004,30]
[392525455,1761607023481,-900.0,0.0004,30]
[392525456,1761607023512,-218.60771995,0.0004,30]
[392525457,1761607023542,-1800.0,0.0004,30]
[392525458,1761607023571,-800.0,0.0004,30]
[392525459,1761607023606,-600.0,0.0004,30]
[392525460,1761607023636,-900.0,0.0004,30]
[392525461,1761607023668,-947.01205333,0.0004,30]
[392525462,1761607023700,-1800.0,0.0004,30]
[392525463,1761607023728,-600.0,0.0004,30]
[392525464,1761607023759,-900.0,0.0004,30]
[392525465,1761607023788,-600.0,0.0004,30]
[392525466,1761607023818,-3090.73147478,0.0004,30]
[392525467,1761607023847,-900.0,0.0004,30]
[392525468,1761607023880,-600.0,0.0004,30]
[392525469,1761607023913,-900.0,0.0004,30]
[392525470,1761607023942,-500.0,0.0004,30]
[392525471,1761607023972,-600.0,0.0004,30]
[392525472,1761607024003,-900.0,0.0004,30]
[392525473,1761607024033,-600.0,0.0004,30]
[392525474,1761607024062,-500.0,0.0004,30]
[392525475,1761607024091,-1449.49571113,0.0004,30]
[392525476,1761607024124,-600.0,0.0004,30]
[392525477,1761607024153,-150.11164651,0.0004,30]
[392525478,1761607024183,-500.0,0.0004,30]
[392525479,1761607024211,-291.25984997,0.0004,30]
[392525480,1761607024240,-500.0,0.0004,30]
[392525481,1761607024268,-600.0,0.0004,30]
[392525482,1761607024297,-500.0,0.0004,30]
[392525483,1761607024325,-600.0,0.0004,30]
[392525484,1761607024354,-198.28726789,0.0004,30]
[392525485,1761607024385,-1300.0,0.0004,30]
[392525486,1761607024414,-600.0,0.0004,30]
[392525487,1761607024443,-500.0,0.0004,30]
[392525488,1761607024472,-1300.0,0.0004,30]
[392525489,1761607024501,-600.0,0.0004,30]
[392525490,1761607024531,-500.0,0.0004,30]
[392525491,1761607024558,-1300.0,0.0004,30]
[392525492,1761607024585,-500.0,0.0004,30]
[392525493,1761607024612,-600.0,0.0004,30]
[392525494,1761607024639,-500.0,0.0004,30]
[392525495,1761607024665,-500.0,0.0004,30]
[392525496,1761607024693,-500.0,0.0004,30]
[392525497,1761607024720,-500.0,0.0004,30]
[392525498,1761607024748,-500.0,0.0004,30]
[392525499,1761607024775,-500.0,0.0004,30]
[392525500,1761607024803,-600.0,0.0004,30]
[392525501,1761607024830,-1300.0,0.0004,30]
[392525502,1761607024857,-500.0,0.0004,30]
[392525503,1761607024885,-800.0,0.0004,30]
[392525504,1761607024914,-500.0,0.0004,30]
[392525505,1761607024942,-500.0,0.0004,30]
[392525506,1761607024971,-600.0,0.0004,30]
[392525507,1761607025001,-1300.0,0.0004,30]
[392525508,1761607025035,-500.0,0.0004,30]
[392525509,1761607025062,-600.0,0.0004,30]
[392525510,1761607025091,-800.0,0.0004,30]
[392525511,1761607025119,-1300.0,0.0004,30]
[392525512,1761607025148,-500.0,0.0004,30]
[392525513,1761607025177,-600.0,0.0004,30]
[392525514,1761607025206,-800.0,0.0004,30]
[392525515,1761607025234,-1300.0,0.0004,30]
[392525516,1761607025261,-500.0,0.0004,30]
[392525517,1761607025290,-500.0,0.0004,30]
[392525518,1761607025318,-500.0,0.0004,30]
[392525519,1761607025376,-600.0,0.0004,30]
[392525520,1761607025405,-800.0,0.0004,30]
[392525521,1761607025433,-500.0,0.0004,30]
[392525522,1761607025461,-1300.0,0.0004,30]
[392525523,1761607025488,-500.0,0.0004,30]
[392525524,1761607025516,-600.0,0.0004,30]
[392525525,1761607025542,-800.0,0.0004,30]
[392525526,1761607025569,-1300.0,0.0004,30]
[392525527,1761607025598,-500.0,0.0004,30]
[392525528,1761607025627,-500.0,0.0004,30]
[392525529,1761607025655,-600.0,0.0004,30]
[392525530,1761607025682,-800.0,0.0004,30]
[392525531,1761607025709,-1300.0,0.0004,30]
[392525532,1761607025736,-500.0,0.0004,30]
[392525533,1761607025765,-500.0,0.0004,30]
[392525534,1761607025792,-600.0,0.0004,30]
[392525535,1761607025819,-800.0,0.0004,30]
[392525536,1761607025846,-1300.0,0.0004,30]
[392525537,1761607025873,-510.00335347,0.0004,30]
[392525538,1761607025899,-500.0,0.0004,30]
[392525539,1761607025929,-500.0,0.0004,30]
[392525540,1761607025956,-500.0,0.0004,30]
[392525541,1761607025983,-182.14053886,0.0004,30]
[392525542,1761607026011,-600.0,0.0004,30]
[392525543,1761607026037,-800.0,0.0004,30]
[392525544,1761607026065,-1300.0,0.0004,30]
[392525545,1761607026091,-500.0,0.0004,30]
[392525546,1761607026117,-500.0,0.0004,30]
[392525547,1761607026144,-600.0,0.0004,30]
[392525548,1761607026171,-800.0,0.0004,30]
[392525549,1761607026198,-1300.0,0.0004,30]
[392525550,1761607026224,-500.0,0.0004,30]
[392525551,1761607026251,-800.0,0.0004,30]
[392525552,1761607026279,-600.0,0.0004,30]
[392525553,1761607026307,-1300.0,0.0004,30]
[392525554,1761607026334,-500.0,0.0004,30]
[392525555,1761607026361,-800.0,0.0004,30]
[392525556,1761607026389,-600.0,0.0004,30]
[392525557,1761607026417,-1300.0,0.0004,30]
[392525558,1761607026446,-500.0,0.0004,30]
[392525559,1761607026473,-600.0,0.0004,30]
[392525560,1761607026504,-1300.0,0.0004,30]
[392525561,1761607026535,-500.0,0.0004,30]
[392525562,1761607026564,-600.0,0.0004,30]
[392525563,1761607026591,-800.0,0.0004,30]
[392525564,1761607026619,-1300.0,0.0004,30]
[392525565,1761607026647,-500.0,0.0004,30]
[392525566,1761607026675,-600.0,0.0004,30]
[392525567,1761607026703,-1300.0,0.0004,30]
[392525568,1761607026731,-500.0,0.0004,30]
[392525569,1761607026761,-767.85003955,0.0004,30]
[392525570,1761607026790,-1300.0,0.0004,30]
[392525571,1761607026818,-720.43094553,0.0004,30]
[392525572,1761607026848,-800.0,0.0004,30]
[392525573,1761607026876,-1300.0,0.0004,30]
[392525574,1761607026910,-800.0,0.0004,30]
[392525575,1761607026940,-1300.0,0.0004,30]
[392525576,1761607026972,-800.0,0.0004,30]
[392525577,1761607027006,-1300.0,0.0004,30]
[392525578,1761607027037,-800.0,0.0004,30]
[392525579,1761607027067,-1300.0,0.0004,30]
[392525580,1761607027095,-800.0,0.0004,30]
[392525581,1761607027124,-1300.0,0.0004,30]
[392525582,1761607027152,-800.0,0.0004,30]
[392525583,1761607027182,-1300.0,0.0004,30]
[392525584,1761607027210,-800.0,0.0004,30]
[392525585,1761607027240,-1300.0,0.0004,30]
[392525586,1761607027269,-800.0,0.0004,30]
[392525587,1761607027297,-1300.0,0.0004,30]
[392525588,1761607027324,-800.0,0.0004,30]
[392525589,1761607027351,-1300.0,0.0004,30]
[392525590,1761607027377,-800.0,0.0004,30]
[392525591,1761607027406,-800.0,0.0004,30]
[392525592,1761607027434,-1800.0,0.0004,30]
[392525593,1761607027463,-800.0,0.0004,30]
[392525594,1761607027492,-800.0,0.0004,30]
[392525595,1761607027522,-1516.34621063,0.0004,30]
[392525596,1761607027551,-569.14,0.0004,120]
[392525597,1761607027579,-293.3888,0.0004,120]
[392525598,1761607027607,-250.82,0.0004,120]
[392525599,1761607027635,-1082.72,0.0004,120]
[392525600,1761607027662,-5860.03,0.0004,120]
[392525601,1761607027690,-567.99,0.0004,120]
[392525602,1761607027718,-3094.34,0.0004,120]
[392525603,1761607027746,-548.97989138,0.0004,120]
[392525604,1761607027778,-230.44,0.0004,30]
[392525605,1761607027806,-3916.52,0.0004,120]
[392525606,1761607027835,-153.7181831,0.000402,120]
[392525607,1761607027861,-153.7181831,0.000402,120]
[392525608,1761607027890,-500.0,0.00040223,30]
[392525609,1761607027925,-500.0,0.00040273,120]
[392525610,1761607027955,-1029.8585,0.00040399,30]
[392525611,1761607027985,-500.0,0.00040497,30]
[392525612,1761607028014,-1342.87,0.000405,60]
[392525613,1761607028047,-500.0,0.00040771,30]
[392525614,1761607028078,-353.20021558,0.000409,120]
[392525615,1761607028198,-1620.74,0.00041,30]
[392525616,1761607028226,-1144.36,0.00041,120]
[392525617,1761607028257,-500.0,0.00041045,30]
[392525618,1761607028290,-279.90170673,0.00041095,120]
[392525619,1761607028320,-200.94716768,0.000411,120]
[392525620,1761607028354,-1914.30472349,0.000411,120]
[392525621,1761607028386,-500.0,0.00041319,120]
[392525622,1761607028419,-230.44,0.000414,30]
[392525623,1761607028449,-1092.0,0.00041506,30]
[392525624,1761607028480,-500.0,0.00041593,120]
[392525625,1761607028514,-500.0,0.00041867,120]
[392525626,1761607028546,-208.47,0.00042,30]
[392525627,1761607028576,-499.99999901,0.00042,120]
[392525628,1761607028604,-630.29669584,0.00042,120]
[392525629,1761607028634,-500.0,0.00042141,120]
[392525630,1761607028663,-200.94716768,0.000424,120]
[392525631,1761607028692,-1914.30472349,0.000424,120]
[392525632,1761607028720,-1620.74,0.000424,30]
[392525633,1761607028750,-500.0,0.00042415,120]
[392525634,1761607028781,-207.99601212,0.00042573,120]
[392525635,1761607028810,-207.47725272,0.00042573,120]
[392525636,1761607028838,-175.1,0.00042605,120]
[392525637,1761607028870,-230.44,0.000429,30]
[392525638,1761607028900,-1444.0,0.00043562,120]
[392525639,1761607028934,-200.94716768,0.000436,120]
[392525640,1761607028965,-1914.30472349,0.000436,120]
[392525641,1761607028995,-1092.0,0.00043691,30]
[392525642,1761607029024,-1620.74,0.000437,30]
[392525643,1761607029054,-1000.0,0.000438,30]
[392525644,1761607029085,-500.0,0.00043834,120]
[392525645,1761607029115,-500.0,0.00043834,120]
[392525646,1761607029144,-500.0,0.00043834,120]
[392525647,1761607029172,-500.0,0.00043834,120]
[392525648,1761607029203,-500.0,0.00043834,120]
[392525649,1761607029233,-500.0,0.00043834,120]
[392525650,1761607029263,-500.0,0.00043834,120]
[392525651,1761607029292,-500.0,0.00043834,120]
[392525652,1761607029324,-500.0,0.00043834,120]
[392525653,1761607029355,-500.0,0.00043834,120]
[392525654,1761607029385,-500.0,0.00043834,120]
[392525655,1761607029417,-500.0,0.00043834,120]
[392525656,1761607029448,-500.0,0.00043834,120]
[392525657,1761607029479,-500.0,0.00043834,120]
[392525658,1761607029510,-500.0,0.00043834,120]
[392525659,1761607029540,-500.0,0.00043834,120]
[392525661,1761607029583,-500.0,0.00043834,120]
[392525662,1761607029616,-500.0,0.00043834,120]
[392525663,1761607029647,-500.0,0.00043834,120]
[392525664,1761607029679,-500.0,0.00043834,120]